bitfinex-derivatives/quotes_BNBF0:USTF0_20250630
["timestamp","ask_amount","ask_price","bid_price","bid_amount"]
[1751280127344,2.4128546,652.08,652.07,1.708]
[1751280127546,2.4128546,652.08,651.96,2.162]
[1751280127746,2.4128546,652.07,651.96,2.162]
[1751280128042,2.4128546,652.06,651.96,2.162]
[1751280128245,2.4128546,652.05,651.96,2.162]
[1751280128553,1.0643885,652.04,651.96,2.162]
[1751280128743,1.0643885,652.03,651.96,2.162]
[1751280128942,1.0643885,652.02,651.96,2.162]
[1751280130847,1.0643885,652.02,651.99,1.398]
[1751280131841,1.0643885,652.01,651.99,1.398]
[1751280132047,1.0643885,652.0,651.99,1.398]
[1751280148859,1.0643885,652.0,651.95,1.671]
[1751280149162,1.0643885,651.99,651.95,1.671]
[1751280149358,1.1441127,652.07,651.95,1.671]
[1751280149359,1.0643885,651.98,651.95,1.671]
[1751280149562,1.0643885,651.97,651.95,1.671]
[1751280149761,1.0643885,651.96,651.95,1.671]
[1751280154261,1.1441127,652.07,651.95,1.671]
[1751280154462,1.0650061,652.06,651.95,1.671]
[1751280154662,1.0650061,652.05,651.95,1.671]
[1751280154962,1.0650061,652.04,651.95,1.671]
[1751280155257,1.0650061,652.03,651.95,1.671]
[1751280155462,1.0650061,652.02,651.95,1.671]
[1751280155663,1.0650061,652.01,651.95,1.671]
[1751280155862,1.1441127,652.09,651.95,1.671]
[1751280155863,1.0650061,652.0,651.95,1.671]
[1751280156063,1.0650061,651.99,651.95,1.671]
[1751280156259,1.0650061,651.98,651.95,1.671]
[1751280156462,1.0650061,651.97,651.95,1.671]
[1751280156658,1.1441127,652.05,651.95,1.671]
[1751280156861,1.0650156,652.04,651.95,1.671]
[1751280157064,1.0650156,652.03,651.95,1.671]
[1751280157262,1.0650156,652.02,651.95,1.671]
[1751280157465,1.0650156,652.01,651.95,1.671]
[1751280157663,1.0650156,652.0,651.95,1.671]
[1751280157867,1.0650156,651.99,651.95,1.671]
[1751280158065,1.0650156,651.98,651.95,1.671]
[1751280158364,1.0650156,651.97,651.95,1.671]
[1751280158564,1.0650156,651.96,651.95,1.671]
[1751280160767,1.0650156,651.96,651.93,2.507]
[1751280160962,1.1441127,652.05,651.93,2.507]
[1751280161164,1.065077,652.04,651.93,2.507]
[1751280161363,1.065077,652.03,651.93,2.507]
[1751280161666,1.065077,652.02,651.93,2.507]
[1751280161864,1.065077,652.01,651.93,2.507]
[1751280162070,1.065077,652.0,651.93,2.507]
[1751280162270,1.065077,651.99,651.93,2.507]
[1751280162564,1.065077,651.98,651.93,2.507]
[1751280162766,1.065077,651.97,651.93,2.507]
[1751280163066,1.065077,651.96,651.93,2.507]
[1751280163266,1.065077,651.95,651.93,2.507]
[1751280163470,1.1441127,652.05,651.93,2.507]
[1751280163666,1.0651619,652.04,651.93,2.507]
[1751280163969,1.0651619,652.03,651.93,2.507]
[1751280164170,1.0651619,652.02,651.94,1.246]
[1751280164370,1.0651619,652.01,651.94,1.246]
[1751280164665,1.0651619,652.0,651.94,1.246]
[1751280164870,1.0651619,651.99,651.94,1.246]
[1751280165064,1.0651619,651.98,651.94,1.246]
[1751280165270,1.0651619,651.97,651.94,1.246]
[1751280165472,1.0651619,651.96,651.94,1.246]
[1751280165670,1.0651619,651.95,651.94,1.246]
[1751280201195,1.1477961,652.26,651.92,1.17]
[1751280201397,2.92374054,652.25,651.92,1.17]
[1751280201595,2.92374054,652.24,651.89,1.668]
[1751280201894,2.92374054,652.23,651.93,1.178]
[1751280202095,2.92374054,652.22,651.93,1.178]
[1751280202300,2.92374054,652.21,651.93,1.178]
[1751280202501,2.4220442,652.2,651.93,1.178]
[1751280202697,2.4220442,652.19,651.93,1.178]
[1751280203000,2.4220442,652.18,651.93,1.178]
[1751280203201,2.4220442,652.17,651.93,1.178]
[1751280203402,2.4220442,652.16,651.94,1.693]
[1751280203598,2.4220442,652.15,651.94,1.693]
[1751280203803,1.0692874,652.14,651.95,1.713]
[1751280204003,1.0692874,652.13,651.95,2.775]
[1751280204203,1.0692874,652.12,651.95,2.775]
[1751280204404,1.0692874,652.11,651.95,2.775]
[1751280204704,1.0692874,652.1,651.95,2.775]
[1751280204999,1.0692874,652.09,651.95,2.775]
[1751280205200,1.0692874,652.08,651.95,2.775]
[1751280205402,1.0692874,652.07,651.95,2.775]
[1751280205704,1.0692874,652.06,651.96,1.178]
[1751280205901,1.0692874,652.05,651.96,1.178]
[1751280206101,0.50125069,652.27,651.96,1.178]
[1751280206300,2.4203917,652.26,651.96,1.178]
[1751280206505,2.4203917,652.25,651.96,1.178]
[1751280206703,2.4203917,652.24,651.96,1.178]
[1751280206905,2.4203917,652.23,651.96,1.178]
[1751280207106,2.4203917,652.22,651.96,1.178]
[1751280207303,2.4203917,652.21,651.96,1.178]
[1751280207500,2.4203917,652.2,651.96,1.178]
[1751280207699,2.4203917,652.19,651.96,1.178]
[1751280207904,2.4203917,652.18,651.96,1.178]
[1751280208103,1.0685491,652.17,651.96,1.178]
[1751280208300,1.0685491,652.16,651.96,1.178]
[1751280208605,1.0685491,652.15,651.96,1.178]
[1751280208906,1.0685491,652.14,651.96,1.178]
[1751280209104,1.0685491,652.13,651.96,1.178]
[1751280209307,1.0685491,652.12,651.96,1.178]
[1751280209501,1.0685491,652.11,651.96,1.178]
[1751280209702,1.0685491,652.1,651.96,1.178]
[1751280209905,1.0685491,652.09,651.96,1.178]
[1751280210203,1.0685491,652.08,651.96,1.178]
[1751280210404,1.0685491,652.07,651.96,1.178]
[1751280210603,1.0685491,652.06,651.96,1.178]
[1751280210805,1.0685491,652.05,651.96,1.178]
[1751280211107,1.1477961,652.27,651.96,1.178]
[1751280211307,2.4192901,652.26,651.96,1.178]
[1751280211504,2.4192901,652.25,651.96,1.178]
[1751280211703,2.4192901,652.24,651.96,1.178]
[1751280211904,2.4192901,652.23,651.96,1.178]
[1751280212207,2.4192901,652.22,651.96,1.178]
[1751280212407,2.4192901,652.21,651.96,1.178]
[1751280212609,2.4192901,652.2,651.96,1.178]
[1751280212809,2.4192901,652.19,651.96,1.178]
[1751280213008,2.4192901,652.18,651.96,1.178]
[1751280213205,2.4192901,652.17,651.96,1.178]
[1751280213406,2.4192901,652.16,651.96,1.178]
[1751280213709,1.0680142,652.15,651.96,1.178]
[1751280213907,1.0680142,652.14,651.96,1.178]
[1751280214208,1.0680142,652.13,651.96,1.178]
[1751280214409,1.0680142,652.12,651.96,1.178]
[1751280214607,1.0680142,652.11,651.96,1.178]
[1751280214805,1.0680142,652.1,651.96,1.178]
[1751280215006,1.0680142,652.09,651.96,1.178]
[1751280215310,1.0680142,652.08,651.96,1.178]
[1751280215510,1.0680142,652.07,651.96,1.178]
[1751280215809,1.1477961,652.28,651.96,1.178]
[1751280215810,1.0680142,652.06,651.96,1.178]
[1751280216109,1.1477961,652.28,651.96,1.178]
[1751280216309,2.4184472,652.27,651.96,1.178]
[1751280216505,2.4184472,652.26,651.96,1.178]
[1751280216706,2.4184472,652.25,651.96,1.178]
[1751280216905,2.4184472,652.24,651.96,1.178]
[1751280217106,2.4184472,652.23,651.96,1.178]
[1751280217309,2.4184472,652.22,651.96,1.178]
[1751280217511,2.4184472,652.21,651.96,1.178]
[1751280217711,2.4184472,652.2,651.96,1.178]
[1751280218006,2.4184472,652.19,651.96,1.178]
[1751280218211,1.0676421,652.18,651.96,1.178]
[1751280218411,1.0676421,652.17,651.96,1.178]
[1751280218908,1.1477961,652.32,651.96,1.178]
[1751280219111,1.3506338,652.31,651.96,1.178]
[1751280219408,1.3506338,652.3,651.97,0.63]
[1751280219609,1.3506338,652.29,651.97,0.63]
[1751280219812,1.3506338,652.28,651.97,0.63]
[1751280220013,1.3506338,652.27,651.97,0.63]
[1751280220213,1.3506338,652.26,651.97,0.63]
[1751280220712,1.1477961,652.32,651.98,2.447]
[1751280223611,1.1477961,652.3,651.98,2.447]
[1751280223810,1.1477961,652.26,651.98,2.447]
[1751280226613,1.1477961,652.26,651.99,1.12]
[1751280227013,1.1477961,652.24,651.99,1.12]
[1751280227213,1.5303948,652.42,651.99,1.12]
[1751280227214,1.1477961,652.22,651.99,1.12]
[1751280227913,1.1477961,652.22,652.0,1.152]
[1751280229510,1.1477961,652.22,652.01,1.445]
[1751280231315,1.1477961,652.19,652.01,1.445]
[1751280231916,1.1477961,652.14,652.01,1.445]
[1751280232114,1.1477961,652.15,652.01,1.445]
[1751280232316,1.1477961,652.14,652.01,1.445]
[1751280232616,1.1477961,652.11,652.01,1.445]
[1751280232818,1.1477961,652.1,652.01,1.445]
[1751280233414,1.1477961,652.12,652.01,1.445]
[1751280233716,1.1477961,652.11,652.01,1.445]
[1751280234616,1.1477961,652.12,652.01,1.445]
[1751280235112,1.1477961,652.11,652.01,1.445]
[1751280235417,1.1477961,652.12,652.01,1.445]
[1751280238213,1.0675066,652.11,652.01,1.445]
[1751280238514,2.4166146,652.1,652.01,1.445]
[1751280238817,2.4166146,652.09,652.01,1.445]
[1751280239018,2.4166146,652.08,652.01,1.445]
[1751280239217,2.4166146,652.07,652.01,1.445]
[1751280239417,1.1477961,652.12,652.01,1.445]
[1751280239418,2.4166146,652.06,652.01,1.445]
[1751280239615,2.4166146,652.05,652.01,1.445]
[1751280239816,2.4166146,652.04,652.01,1.445]
[1751280240015,2.4166146,652.03,652.01,1.445]
[1751280240217,2.4166146,652.02,652.01,1.445]
[1751280244420,1.0668601,652.02,652.01,1.445]
[1751280245122,2.4164752,652.02,652.01,1.445]
[1751280245323,1.0668601,652.02,652.01,1.445]
[1751280246223,2.4164436,652.02,652.01,1.445]
[1751280246424,1.0668601,652.02,652.01,1.445]
[1751280250626,1.0668601,652.02,652.01,1.445]
[1751280252424,2.4162999,652.02,652.01,1.445]
[1751280253224,1.0668601,652.02,652.01,1.445]
[1751280254130,2.4162335,652.02,652.01,1.445]
[1751280256226,1.0668601,652.02,652.01,1.445]
[1751280272242,2.4154879,652.02,652.01,1.445]
[1751280274442,2.4154879,652.02,651.99,1.49]
[1751280274745,2.4154879,652.01,651.99,1.49]
[1751280275045,1.0668601,652.0,651.99,1.49]
[1751280279651,2.4157601,652.0,651.99,1.49]
[1751280280252,2.4158273,652.0,651.99,1.49]
[1751280281153,2.415915,652.0,651.99,1.49]
[1751280283453,1.0668601,652.0,651.99,1.49]
[1751280285753,1.1477961,652.06,651.99,1.49]
[1751280285955,1.0668267,652.05,651.99,1.49]
[1751280286159,1.0668267,652.04,651.99,2.634]
[1751280286353,1.0668267,652.03,651.99,2.634]
[1751280286553,1.1477961,652.05,651.99,2.634]
[1751280286758,1.0669064,652.04,651.99,2.634]
[1751280286958,1.0669064,652.03,651.99,2.634]
[1751280287155,1.1477961,652.05,651.99,2.634]
[1751280287360,1.0670113,652.04,651.99,2.634]
[1751280287660,1.0670113,652.03,651.99,2.634]
[1751280287856,1.1477961,652.18,651.99,2.634]
[1751280288057,2.4168132,652.17,651.99,2.634]
[1751280288256,2.4168132,652.16,651.99,2.634]
[1751280288458,2.4168132,652.15,651.99,2.634]
[1751280288660,2.4168132,652.14,651.99,2.634]
[1751280288860,2.4168132,652.13,651.99,2.634]
[1751280289056,1.0669885,652.12,651.99,2.634]
[1751280289361,1.0669885,652.11,651.99,2.634]
[1751280289562,1.0669885,652.1,651.99,2.634]
[1751280289763,1.0669885,652.09,651.99,2.634]
[1751280290060,1.0669885,652.08,651.99,2.634]
[1751280290256,1.0669885,652.07,651.99,2.634]
[1751280290459,1.0669885,652.06,651.99,2.634]
[1751280290661,1.0669885,652.05,651.99,2.634]
[1751280290861,1.0669885,652.04,651.99,2.634]
[1751280291161,1.0669885,652.03,651.99,2.634]
[1751280291361,1.0669885,652.02,651.99,2.634]
[1751280291663,1.0669885,652.01,651.99,2.634]
[1751280291961,1.1477961,652.18,651.99,1.144]
[1751280292161,2.4176262,652.17,651.99,1.144]
[1751280292362,2.4176262,652.16,651.99,1.144]
[1751280292657,2.4176262,652.15,651.99,1.144]
[1751280292857,2.4176262,652.14,651.99,1.144]
[1751280293058,2.4176262,652.13,651.99,1.144]
[1751280293263,2.4176262,652.12,651.99,1.144]
[1751280293464,2.4176262,652.11,651.99,1.144]
[1751280293662,2.4176262,652.1,651.99,1.144]
[1751280293964,2.4179755,652.09,651.99,1.144]
[1751280294165,1.0675017,652.08,651.99,1.144]
[1751280294364,1.0675017,652.07,651.99,1.144]
[1751280294665,1.0675017,652.06,651.99,1.144]
[1751280294860,1.1477961,652.18,651.99,1.144]
[1751280294861,1.0675017,652.05,651.99,1.144]
[1751280295061,1.0675017,652.04,651.99,1.144]
[1751280295362,1.0675017,652.03,652.0,1.719]
[1751280295666,1.0675017,652.02,652.0,1.719]
[1751280295867,1.0675017,652.01,652.0,1.719]
[1751280308565,1.1477961,652.25,652.0,1.719]
[1751280308769,1.350112,652.24,652.0,1.719]
[1751280308969,1.350112,652.23,652.0,1.719]
[1751280309170,1.85092291,652.22,652.0,1.719]
[1751280309469,1.350112,652.21,652.0,1.719]
[1751280309671,2.4173277,652.2,652.0,1.719]
[1751280309872,2.4173277,652.19,652.0,1.719]
[1751280310070,2.4173277,652.18,652.0,1.719]
[1751280310270,2.4173277,652.17,652.0,1.719]
[1751280310466,2.4173277,652.16,652.01,1.274]
[1751280310669,2.4173277,652.15,652.01,1.274]
[1751280310972,1.0672157,652.14,652.02,1.229]
[1751280311172,1.0672157,652.13,652.02,1.229]
[1751280311473,1.0672157,652.12,652.02,1.229]
[1751280311675,1.0672157,652.11,652.02,1.229]
[1751280311875,1.0672157,652.1,652.02,1.229]
[1751280312075,1.0672157,652.09,652.02,1.229]
[1751280312375,1.0672157,652.08,652.02,1.229]
[1751280312574,1.0672157,652.07,652.02,1.229]
[1751280312874,1.0672157,652.06,652.02,1.229]
[1751280313070,1.0672157,652.05,652.02,1.229]
[1751280313275,0.50077574,652.26,652.02,1.229]
[1751280313575,2.4167344,652.25,652.02,1.229]
[1751280313775,2.4167344,652.24,652.02,1.229]
[1751280313973,2.4167344,652.23,652.02,1.229]
[1751280314172,2.4167344,652.22,652.02,1.229]
[1751280314376,2.4167344,652.21,652.02,1.229]
[1751280314576,2.4167344,652.2,652.02,1.229]
[1751280314776,2.4167344,652.19,652.02,1.229]
[1751280314976,2.4167344,652.18,652.02,1.229]
[1751280315173,2.4167344,652.17,652.02,1.229]
[1751280315374,2.4167344,652.16,652.02,1.229]
[1751280315577,1.066971,652.15,652.02,1.229]
[1751280315776,1.066971,652.14,652.02,1.229]
[1751280315974,1.066971,652.13,652.02,1.229]
[1751280316274,1.066971,652.12,652.02,1.229]
[1751280316573,1.066971,652.11,652.02,1.229]
[1751280316779,1.066971,652.1,652.02,1.229]
[1751280316973,1.066971,652.09,652.02,1.229]
[1751280317276,1.066971,652.08,652.02,1.229]
[1751280317479,1.066971,652.07,652.02,1.229]
[1751280317680,1.066971,652.06,652.02,1.229]
[1751280317977,1.066971,652.05,652.02,1.229]
[1751280318179,1.1477961,652.26,652.02,1.229]
[1751280318380,2.4161924,652.25,652.02,1.229]
[1751280318579,2.4161924,652.24,652.02,1.229]
[1751280318879,1.1477961,652.25,652.02,1.229]
[1751280318880,2.4161924,652.23,652.02,1.229]
[1751280319080,2.4161924,652.22,652.02,1.229]
[1751280319275,2.4161924,652.21,652.02,1.229]
[1751280319578,2.4161924,652.2,652.02,1.229]
[1751280319776,2.4161924,652.19,652.02,1.229]
[1751280319979,2.4161924,652.18,652.02,1.229]
[1751280320180,2.4161924,652.17,652.02,1.229]
[1751280320476,2.4161924,652.16,652.02,1.229]
[1751280320676,2.4161924,652.15,652.02,1.229]
[1751280320880,1.0667199,652.14,652.02,1.229]
[1751280321080,1.0667199,652.13,652.02,1.229]
[1751280321280,1.0667199,652.12,652.02,1.229]
[1751280321482,1.0667199,652.11,652.02,1.229]
[1751280321782,1.0667199,652.1,652.02,1.229]
[1751280322081,1.0667199,652.09,652.02,1.229]
[1751280322277,1.0667199,652.08,652.02,1.229]
[1751280322576,1.0667199,652.07,652.02,1.229]
[1751280322777,1.0667199,652.06,652.02,1.229]
[1751280322981,1.0667199,652.05,652.02,1.229]
[1751280323179,1.1477961,652.24,652.02,1.229]
[1751280323483,2.416028,652.23,652.02,1.229]
[1751280323677,2.416028,652.22,652.02,1.229]
[1751280323878,2.416028,652.21,652.02,1.229]
[1751280324177,2.416028,652.2,652.02,1.229]
[1751280324377,2.416028,652.19,652.02,1.229]
[1751280324577,2.416028,652.18,652.03,1.84]
[1751280324781,2.416028,652.17,652.03,1.84]
[1751280324982,2.416028,652.16,652.04,1.489]
[1751280325185,2.416028,652.15,652.04,1.489]
[1751280325384,2.4160937,652.14,652.04,1.489]
[1751280325584,1.0666585,652.13,652.04,1.489]
[1751280325783,1.0666585,652.12,652.04,1.489]
[1751280326086,1.0666585,652.11,652.04,1.489]
[1751280326287,1.0666585,652.1,652.04,1.489]
[1751280326482,1.0666585,652.09,652.04,1.489]
[1751280326783,1.0666585,652.08,652.04,1.489]
[1751280326986,1.0666585,652.07,652.04,1.489]
[1751280327186,1.0666585,652.06,652.04,1.489]
[1751280327384,1.0666585,652.05,652.04,1.489]
[1751280328589,1.1453416,652.27,652.04,1.489]
[1751280328784,2.4164301,652.26,652.04,1.489]
[1751280328989,2.4164301,652.25,652.04,1.489]
[1751280329189,2.4164301,652.24,652.04,1.489]
[1751280329390,2.4164301,652.23,652.04,1.489]
[1751280329690,2.4164301,652.22,652.04,1.489]
[1751280329989,2.4164301,652.21,652.04,1.489]
[1751280330192,2.4164301,652.2,652.04,1.489]
[1751280330388,2.4164301,652.19,652.04,1.489]
[1751280330587,2.4164301,652.18,652.04,1.489]
[1751280330791,2.4164301,652.17,652.04,1.489]
[1751280330988,2.4164301,652.16,652.04,1.489]
[1751280331189,1.066836,652.15,652.04,1.489]
[1751280331492,1.066836,652.14,652.04,1.489]
[1751280331691,1.1453416,652.27,652.04,1.489]
[1751280331692,1.066836,652.13,652.04,1.489]
[1751280331893,1.066836,652.12,652.04,1.489]
[1751280332090,1.066836,652.11,652.04,1.489]
[1751280332393,1.066836,652.1,652.04,1.489]
[1751280332593,1.066836,652.09,652.04,1.489]
[1751280332790,1.066836,652.08,652.04,1.489]
[1751280333092,1.066836,652.07,652.04,1.489]
[1751280333292,1.066836,652.06,652.04,1.489]
[1751280333496,1.066836,652.05,652.04,1.489]
[1751280342801,0.50156309,652.32,652.04,1.489]
[1751280343000,2.4201539,652.31,652.04,1.489]
[1751280343201,2.4201539,652.3,652.04,1.489]
[1751280343402,2.4201539,652.29,652.04,1.489]
[1751280343702,2.4201539,652.28,652.04,1.489]
[1751280343898,2.4201539,652.27,652.05,1.499]
[1751280344102,2.4201539,652.26,652.05,1.499]
[1751280344297,2.4201539,652.25,652.05,1.499]
[1751280344500,2.4201539,652.24,652.05,1.499]
[1751280344797,2.4201539,652.23,652.05,1.499]
[1751280345102,2.4201539,652.22,652.05,1.499]
[1751280345303,2.4201539,652.21,652.05,1.499]
[1751280345503,2.4201539,652.2,652.05,1.499]
[1751280345803,2.4201539,652.19,652.05,1.499]
[1751280346196,2.4201539,652.18,652.06,1.385]
[1751280346396,2.4201539,652.17,652.06,2.709]
[1751280346602,2.4201539,652.16,652.06,2.709]
[1751280346801,2.4201539,652.15,652.06,2.709]
[1751280346999,1.0682985,652.14,652.06,2.709]
[1751280347302,1.0682985,652.13,652.06,2.709]
[1751280347602,1.0682985,652.12,652.06,2.709]
[1751280347796,1.0682985,652.11,652.06,2.709]
[1751280348002,1.1453416,652.24,652.06,2.709]
[1751280348003,1.0682985,652.1,652.06,2.709]
[1751280348204,1.0682985,652.09,652.06,2.709]
[1751280348500,1.0682985,652.08,652.06,2.709]
[1751280348701,1.0682985,652.07,652.06,2.709]
[1751280357203,1.0682985,652.07,652.06,1.324]
[1751280358508,1.0682985,652.07,652.05,1.499]
[1751280358808,1.1482814,652.28,652.05,1.499]
[1751280359008,2.4206254,652.27,652.05,1.499]
[1751280359206,2.4206254,652.26,652.05,1.499]
[1751280359403,2.4206254,652.25,652.05,1.499]
[1751280359603,2.4206254,652.24,652.05,1.499]
[1751280359908,2.4206254,652.23,652.05,1.499]
[1751280360208,2.4206254,652.22,652.05,1.499]
[1751280360406,2.4206254,652.21,652.05,1.499]
[1751280360604,2.4206254,652.2,652.05,1.499]
[1751280360808,2.4206254,652.19,652.05,1.499]
[1751280361109,1.0685066,652.18,652.05,1.499]
[1751280361307,1.0685066,652.17,652.06,1.322]
[1751280361606,1.0685066,652.16,652.06,1.322]
[1751280361806,1.0685066,652.15,652.06,1.322]
[1751280362007,1.0685066,652.14,652.06,1.322]
[1751280362207,1.0685066,652.13,652.06,1.322]
[1751280362409,1.0685066,652.12,652.06,1.322]
[1751280362606,1.0685066,652.11,652.06,1.322]
[1751280362806,1.0685066,652.1,652.06,1.322]
[1751280363011,1.0685066,652.09,652.06,1.322]
[1751280363208,1.0685066,652.08,652.06,1.322]
[1751280363409,1.1482814,652.29,652.06,1.322]
[1751280363613,2.4206367,652.28,652.06,1.322]
[1751280363811,2.4206367,652.27,652.06,1.322]
[1751280364011,2.4206367,652.26,652.06,1.322]
[1751280364212,2.4206367,652.25,652.06,1.322]
[1751280364410,2.4206367,652.24,652.06,1.322]
[1751280364908,1.3521251,652.24,652.06,1.322]
[1751280365212,1.1482814,652.3,652.06,1.322]
[1751280367012,1.1482814,652.28,652.06,1.322]
[1751280367913,1.1482814,652.34,652.07,0.629]
[1751280368810,1.1482814,652.34,652.08,1.079]
[1751280369912,1.1482814,652.33,652.08,1.079]
[1751280371312,1.352136,652.23,652.08,1.079]
[1751280371510,2.4206562,652.22,652.08,1.079]
[1751280371812,2.4206562,652.21,652.08,1.079]
[1751280372012,1.0685202,652.2,652.08,1.079]
[1751280372210,1.0685202,652.19,652.08,1.079]
[1751280372410,1.0685202,652.18,652.08,1.079]
[1751280372616,1.0685202,652.17,652.08,1.079]
[1751280372816,1.0685202,652.16,652.08,1.079]
[1751280373114,1.0685202,652.15,652.08,1.079]
[1751280373314,1.0685202,652.14,652.08,1.079]
[1751280373513,1.0685202,652.13,652.08,1.079]
[1751280373718,1.0685202,652.12,652.08,1.079]
[1751280374018,1.0685202,652.11,652.08,1.079]
[1751280374218,1.0685202,652.1,652.08,1.079]
[1751280374414,1.0685202,652.09,652.08,1.079]
[1751280379823,1.0685202,652.09,652.07,0.629]
[1751280380025,1.0685202,652.08,652.07,0.629]
[1751280392927,1.0685202,652.08,652.05,1.466]
[1751280393129,1.0685202,652.07,652.05,1.466]
[1751280393330,1.0685202,652.06,652.05,1.466]
[1751280397334,1.0685202,652.06,652.01,2.826]
[1751280397533,1.0685202,652.05,652.01,2.826]
[1751280397736,1.1482814,652.24,652.01,2.826]
[1751280397934,2.42245644,652.23,652.01,2.826]
[1751280398134,2.42245644,652.22,652.01,2.826]
[1751280398338,2.42245644,652.21,652.01,1.222]
[1751280398534,2.42245644,652.2,652.01,1.222]
[1751280398734,2.42245644,652.19,652.01,1.222]
[1751280398940,2.42245644,652.18,652.01,1.222]
[1751280399137,2.42245644,652.17,652.01,1.222]
[1751280399340,2.42245644,652.16,652.02,1.263]
[1751280399540,2.42245644,652.15,652.02,1.263]
[1751280399742,2.42245644,652.14,652.03,1.502]
[1751280400039,1.0696556,652.13,652.03,1.502]
[1751280400241,1.0696556,652.12,652.03,1.502]
[1751280400441,1.0696556,652.11,652.03,1.502]
[1751280400641,1.0696556,652.1,652.03,1.502]
[1751280400839,1.0696556,652.09,652.03,1.502]
[1751280401038,1.0696556,652.08,652.03,1.502]
[1751280401243,1.0696556,652.07,652.03,1.502]
[1751280401542,1.0696556,652.06,652.03,1.502]
[1751280401744,1.0696556,652.05,652.03,1.502]
[1751280402040,1.0696556,652.04,652.03,1.502]
[1751280404546,1.0696556,652.04,651.86,1.1480509]
[1751280404746,1.0696556,652.03,651.86,1.1480509]
[1751280404946,1.0696556,652.02,651.86,1.1480509]
[1751280405147,0.50226182,652.25,651.86,1.1480509]
[1751280405345,2.92621342,652.24,651.87,1.1480509]
[1751280405543,2.92621342,652.23,651.87,1.1480509]
[1751280405747,2.4239516,652.22,651.87,1.1480509]
[1751280406049,2.4239516,652.21,651.87,1.1480509]
[1751280406242,2.4239516,652.2,651.87,1.1480509]
[1751280406445,2.4239516,652.19,651.87,1.1480509]
[1751280406647,2.4239516,652.18,651.88,1.531]
[1751280406849,1.1482814,652.27,651.88,1.531]
[1751280406850,2.4239516,652.17,651.88,4.33]
[1751280407145,2.4239516,652.16,651.88,4.33]
[1751280407349,2.4239516,652.15,651.88,4.33]
[1751280407646,2.4239516,652.14,651.88,4.33]
[1751280407949,2.4239516,652.13,651.88,4.33]
[1751280408151,1.0702527,652.12,651.88,4.33]
[1751280408350,1.0702527,652.11,651.88,4.33]
[1751280408553,1.0702527,652.1,651.89,1.295]
[1751280408850,1.0702527,652.09,651.89,1.295]
[1751280409150,1.0702527,652.08,651.9,0.629]
[1751280409350,1.0702527,652.07,651.9,0.629]
[1751280409550,1.0702527,652.06,651.91,2.542]
[1751280409750,1.1482814,652.34,651.91,2.542]
[1751280409950,2.92623118,652.33,651.92,2.041]
[1751280410151,2.92623118,652.32,651.92,2.041]
[1751280410452,2.92623118,652.31,651.92,2.041]
[1751280410646,2.92623118,652.3,651.92,2.041]
[1751280410849,2.92623118,652.29,651.92,2.041]
[1751280411050,2.4239652,652.28,651.92,2.041]
[1751280411346,2.4239652,652.27,651.92,2.041]
[1751280411648,2.4239652,652.26,651.92,2.041]
[1751280411949,2.4239652,652.25,651.92,2.041]
[1751280412148,3.8123757,653.66,651.92,2.041]
[1751280412149,2.4239652,652.24,651.92,2.041]
[1751280412347,2.4239652,652.23,651.92,2.041]
[1751280412549,2.4239652,652.22,651.92,2.041]
[1751280412844,2.4239652,652.21,651.92,2.041]
[1751280413043,2.4239652,652.2,651.92,2.041]